bitfinex/quotes_SOLUSD_20241118
["timestamp","ask_amount","ask_price","bid_price","bid_amount"]
[1731938837251,20.05154965,239.56,239.48,20.05154965]
[1731938837455,20.05154965,239.57,239.49,20.05154965]
[1731938837673,20.05154965,239.55,239.48,0.09367462]
[1731938838249,20.05154965,239.55,239.48,23.99604862]
[1731938838557,20.05154965,239.54,239.5,23.87055862]
[1731938840273,20.05154965,239.55,239.5,28.04575862]
[1731938840450,20.05154965,239.54,239.5,28.04575862]
[1731938840646,4.1738,239.59,239.49,10.4388]
[1731938840647,20.05154965,239.53,239.49,10.4388]
[1731938840846,20.05154965,239.5,239.43,6.1124]
[1731938841055,20.05154965,239.52,239.42,16.4231]
[1731938841270,20.05154965,239.43,239.38,10.4435]
[1731938841471,70.0,239.5,239.38,10.4435]
[1731938841679,20.05154965,239.4,239.38,10.4435]
[1731938842068,20.05154965,239.4,239.34,4.178]
[1731938842270,20.05154965,239.4,239.32,10.446]
[1731938842657,24.22864965,239.4,239.32,10.446]
[1731938842855,24.22864965,239.4,239.32,14.6244]
[1731938843380,24.22864965,239.4,239.32,10.446]
[1731938843757,44.2801993,239.4,239.34,0.04]
[1731938844268,24.22864965,239.4,239.34,0.04]
[1731938844961,44.2801993,239.4,239.34,0.04]
[1731938845979,175.87701517,239.42,239.38,23.776884]
[1731938846178,20.05154965,239.43,239.4,0.09367462]
[1731938847387,20.05154965,239.44,239.4,0.09367462]
[1731938848166,20.05154965,239.47,239.42,0.09367462]
[1731938848379,20.05154965,239.5,239.44,23.87055862]
[1731938848762,20.05154965,239.48,239.44,0.09367462]
[1731938849088,20.05154965,239.49,239.43,0.09367462]
[1731938849271,20.05154965,239.49,239.42,43.82843365]
[1731938849272,20.05154965,239.53,239.47,23.87055862]
[1731938849780,20.05154965,239.54,239.47,43.92210827]
[1731938849985,20.05154965,239.54,239.49,0.09367462]
[1731938850157,20.05154965,239.53,239.49,0.09367462]
[1731938850358,20.05154965,239.52,239.49,0.09367462]
[1731938850578,70.0,239.59,239.47,10.4396]
[1731938850579,20.05154965,239.51,239.47,10.4396]
[1731938851484,20.05154965,239.51,239.48,0.09367462]
[1731938851778,20.05154965,239.55,239.48,20.27071427]
[1731938852002,20.05154965,239.61,239.53,20.14522427]
[1731938852182,4.1727,239.65,239.56,20.05154965]
[1731938852553,20.05154965,239.62,239.56,20.05154965]
[1731938852760,20.05154965,239.62,239.55,4.1744]
[1731938852985,155.82546552,239.7,239.55,4.1744]
[1731938852986,4.1694,239.84,239.67,0.25098]
[1731938853173,20.05154965,239.81,239.72,20.05154965]
[1731938853378,20.05154965,239.83,239.74,20.05154965]
[1731938853663,20.05154965,239.79,239.7,20.05154965]
[1731938853978,20.05154965,239.77,239.7,20.05154965]
[1731938854198,4.1694,239.84,239.61,20.05154965]
[1731938854199,20.05154965,239.71,239.61,20.05154965]
[1731938854386,24.32234965,239.76,239.61,20.05154965]
[1731938854387,20.05154965,239.69,239.61,20.05154965]
[1731938854575,155.82546552,239.75,239.68,0.09367462]
[1731938854576,175.87701517,239.75,239.68,0.09367462]
[1731938854905,21.3721,239.85,239.68,0.09367462]
[1731938854906,24.22134965,239.82,239.74,20.05154965]
[1731938855298,21.2721,239.85,239.59,0.83456894]
[1731938855299,20.05154965,239.84,239.77,20.05154965]
[1731938855600,4.1693,239.85,239.75,0.09367462]
[1731938855601,20.05154965,239.86,239.79,20.05154965]
[1731938855786,20.05154965,239.84,239.77,20.05154965]
[1731938856107,20.05154965,239.82,239.65,43.776884]
[1731938856280,20.05154965,239.79,239.71,20.05154965]
[1731938856478,20.05154965,239.79,239.72,0.09367462]
[1731938856698,20.05154965,239.77,239.69,20.05154965]
[1731938857278,20.05154965,239.79,239.71,20.05154965]
[1731938857678,20.05154965,239.79,239.72,0.09367462]
[1731938858002,20.05154965,239.77,239.69,20.05154965]
[1731938858694,20.05154965,239.7,239.63,20.05154965]
[1731938859292,20.05154965,239.72,239.65,0.09367462]
[1731938859507,20.05154965,239.73,239.66,20.05154965]
[1731938859678,20.05154965,239.74,239.67,20.05154965]
[1731938859875,20.05154965,239.74,239.65,0.09367462]
[1731938859876,20.05154965,239.73,239.65,20.05154965]
[1731938860077,20.05154965,239.73,239.66,0.09367462]
[1731938860487,20.05154965,239.73,239.66,20.14522427]
[1731938860981,24.22274965,239.74,239.66,20.14522427]
[1731938861296,20.05154965,239.78,239.71,0.09367462]
[1731938861485,20.05154965,239.78,239.7,20.05154965]
[1731938861910,24.22194965,239.79,239.72,20.05154965]
[1731938862195,24.22194965,239.79,239.71,20.05154965]
[1731938862399,20.05154965,239.73,239.65,20.05154965]
[1731938862599,20.05154965,239.72,239.64,20.05154965]
[1731938862901,20.05154965,239.71,239.64,20.05154965]
[1731938863079,20.05154965,239.72,239.64,20.05154965]
[1731938863574,24.22314965,239.72,239.64,20.05154965]
[1731938863981,20.05154965,239.7,239.62,20.14522427]
[1731938864183,20.05154965,239.68,239.61,20.05154965]
[1731938864681,20.05154965,239.69,239.62,20.05154965]
[1731938864886,20.05154965,239.7,239.63,20.05154965]
[1731938866135,4.172,239.69,239.63,20.05154965]
[1731938866896,20.05154965,239.67,239.61,0.09367462]
[1731938867103,20.05154965,239.69,239.61,20.14522427]
[1731938867410,4.1717,239.71,239.66,20.05154965]
[1731938867801,24.22324965,239.71,239.64,20.05154965]
[1731938868009,20.05154965,239.7,239.62,20.14522427]
[1731938868499,24.22324965,239.71,239.63,20.05154965]
[1731938868676,20.05154965,239.69,239.62,0.09367462]
[1731938868878,20.05154965,239.68,239.62,0.09367462]
[1731938869382,4.1722,239.69,239.62,20.14522427]
[1731938869579,20.05154965,239.68,239.62,0.09367462]
[1731938869785,4.1722,239.69,239.62,0.09367462]
[1731938869786,20.05154965,239.66,239.62,0.09367462]
[1731938870396,20.05154965,239.63,239.62,0.09367462]
[1731938871302,24.22464965,239.63,239.62,0.09367462]
[1731938872082,20.05154965,239.67,239.62,0.09367462]
[1731938872289,155.82546552,239.68,239.62,0.09367462]
[1731938873103,20.05154965,239.67,239.62,0.09367462]
[1731938873291,20.05154965,239.66,239.62,0.09367462]
[1731938873487,20.05154965,239.65,239.62,0.09367462]
[1731938873785,20.05154965,239.64,239.62,0.09367462]
[1731938876707,24.22444965,239.64,239.62,0.09367462]
[1731938877113,4.1729,239.64,239.62,0.09367462]
[1731938877406,4.1726,239.66,239.62,0.09367462]
[1731938877581,24.22414965,239.66,239.62,0.09367462]
[1731938877776,20.05154965,239.65,239.62,0.09367462]
[1731938877976,20.05154965,239.63,239.62,0.09367462]
[1731938878208,50.05154965,239.63,239.62,0.09367462]
[1731938878804,54.22464965,239.63,239.62,0.09367462]
[1731938880301,34.1731,239.63,239.62,0.09367462]
[1731938880496,20.05154965,239.68,239.62,0.09367462]
[1731938880802,4.1727,239.65,239.62,0.09367462]
[1731938881184,20.05154965,239.66,239.62,0.09367462]
[1731938881509,20.05154965,239.71,239.63,20.05154965]
[1731938881686,24.22324965,239.71,239.63,20.05154965]
[1731938883185,24.22324965,239.71,239.64,0.09367462]
[1731938883392,20.05154965,239.69,239.64,0.09367462]
[1731938883593,24.22324965,239.71,239.64,0.09367462]
[1731938883803,20.05154965,239.69,239.64,0.09367462]
[1731938884308,20.05154965,239.69,239.62,0.09367462]
[1731938885007,24.22364965,239.69,239.62,4.26687462]
[1731938885827,20.05154965,239.63,239.62,0.09367462]
[1731938887511,24.22464965,239.63,239.62,0.09367462]
[1731938888902,24.22394965,239.67,239.62,0.09367462]
[1731938889690,20.05154965,239.65,239.62,0.09367462]
[1731938890706,20.05154965,239.67,239.62,4.26687462]
[1731938891111,24.22394965,239.67,239.62,0.09367462]
[1731938892701,20.05154965,239.63,239.62,0.09367462]
[1731938893311,4.1724,239.67,239.62,0.09367462]
[1731938893312,20.05154965,239.67,239.62,0.09367462]
[1731938893691,20.05154965,239.67,239.62,4.26687462]
[1731938894107,20.05154965,239.63,239.62,0.09367462]
[1731938895092,20.05154965,239.65,239.62,0.09367462]
[1731938895272,20.05154965,239.67,239.62,4.26687462]
[1731938895427,20.05154965,239.67,239.62,0.09367462]
[1731938896324,4.1723,239.68,239.62,0.09367462]
[1731938896325,20.05154965,239.65,239.62,0.09367462]
[1731938896811,20.05154965,239.63,239.62,0.09367462]
[1731938897611,20.05154965,239.65,239.62,0.09367462]
[1731938897802,20.05154965,239.67,239.62,0.09367462]
[1731938899401,24.22394965,239.67,239.62,0.09367462]
[1731938902321,24.22354965,239.69,239.62,34.75152427]
[1731938902718,24.22354965,239.69,239.62,14.69997462]
[1731938907391,24.22354965,239.69,239.62,34.75152427]
[1731938907598,20.05154965,239.69,239.64,0.09367462]
[1731938908125,4.1719,239.7,239.64,0.09367462]
[1731938909618,4.1719,239.7,239.64,4.26647462]
[1731938910121,0.04000002,239.71,239.66,12.5450756]
[1731938912504,0.04000002,239.71,239.67,4.1724]
[1731938912828,0.04000002,239.71,239.68,36.3219596]
[1731938913011,0.04000002,239.71,239.7,36.3219596]
[1731938915537,0.04000002,239.71,239.7,40.4937596]
[1731938916338,0.04000002,239.71,239.7,27.948684]
[1731938917730,0.04000002,239.71,239.7,40.6192496]
[1731938922513,12.58507562,239.71,239.67,10.431]
[1731938922716,12.58507562,239.71,239.64,27.1500756]
[1731938922927,0.04000002,239.71,239.66,12.5450756]
[1731938923136,0.04000002,239.71,239.67,0.09367462]
[1731938923922,0.04000002,239.71,239.68,0.12549]
[1731938924318,0.04000002,239.71,239.68,4.29759]
[1731938924535,12.58507562,239.71,239.64,14.605]
[1731938924752,12.5450756,239.7,239.64,10.4323]
[1731938924920,12.5450756,239.68,239.64,10.4323]
[1731938925835,12.5450756,239.68,239.65,0.09367462]
[1731938926427,4.21170002,239.71,239.65,12.76424022]
[1731938926632,4.21170002,239.71,239.65,0.21916462]
[1731938927633,12.58507562,239.71,239.65,0.21916462]
[1731938928847,4.1718,239.7,239.65,0.21916462]
[1731938929022,0.04000002,239.71,239.68,0.25098]
[1731938929220,0.04000002,239.71,239.68,0.12549]
[1731938929627,0.04000002,239.71,239.67,0.12549]
[1731938930728,0.04000002,239.71,239.67,4.29779]
[1731938931636,0.04000002,239.71,239.66,0.25098]
[1731938932134,0.04000002,239.71,239.66,0.12549]
[1731938932949,12.5450756,239.7,239.66,0.12549]
[1731938933554,0.04000002,239.71,239.66,0.12549]
[1731938935767,12.58507562,239.71,239.66,0.12549]
[1731938938161,16.75677562,239.71,239.66,0.12549]
[1731938938672,12.5450756,239.69,239.62,0.09367462]
[1731938938840,12.5450756,239.63,239.62,0.09367462]
[1731938940062,16.7181756,239.63,239.62,0.09367462]
[1731938943367,42.5450756,239.68,239.62,0.09367462]
[1731938943558,30.0,239.68,239.64,0.09367462]
[1731938943768,16.7170756,239.69,239.64,0.09367462]
[1731938944560,12.5450756,239.68,239.64,0.09367462]
[1731938944866,0.04000002,239.65,239.64,0.09367462]
[1731938946753,12.58507562,239.65,239.63,0.12549]
[1731938946945,12.58507562,239.65,239.62,0.09367462]
[1731938946946,0.04000002,239.65,239.62,0.09367462]
[1731938952057,0.04000002,239.65,239.64,12.88973022]
[1731938952247,0.04000002,239.65,239.64,36.66661422]
[1731938952957,0.04000002,239.65,239.64,56.66661422]
[1731938953161,0.04000002,239.65,239.64,73.38458982]
[1731938953569,0.04000002,239.65,239.64,60.83951422]
[1731938956556,16.7158756,239.76,239.64,73.38458982]
[1731938956557,4.1708,239.76,239.64,73.38458982]
[1731938956778,12.5450756,239.82,239.76,0.12549]
[1731938956974,30.0,239.77,239.76,0.12549]
[1731938957683,12.5450756,239.82,239.76,0.12549]
[1731938957977,12.5450756,239.8,239.76,0.12549]
[1731938958180,12.5450756,239.77,239.69,10.43]
[1731938958365,12.5450756,239.75,239.69,10.43]
[1731938958568,12.5450756,239.79,239.72,12.5450756]
[1731938959091,12.5450756,239.76,239.7,0.09367462]
[1731938959296,12.5450756,239.75,239.7,0.09367462]
[1731938959468,12.5450756,239.75,239.7,28.29333862]
[1731938959788,12.5450756,239.75,239.7,23.99604862]
[1731938960976,12.5450756,239.73,239.7,0.09367462]
[1731938961607,12.5450756,239.74,239.7,23.87055862]
[1731938961886,12.5450756,239.73,239.7,0.09367462]
[1731938963383,12.5450756,239.71,239.63,4.1729]
[1731938963566,12.5450756,239.69,239.63,4.1729]
[1731938963772,12.5450756,239.69,239.64,4.1728]
[1731938964393,12.5450756,239.69,239.62,16.81185022]
[1731938964577,12.5450756,239.69,239.63,0.25098]
[1731938964897,42.5450756,239.72,239.66,0.12549]
[1731938965386,46.7167756,239.72,239.66,0.12549]
[1731938965586,46.7167756,239.72,239.65,23.902374]
[1731938965759,16.7167756,239.72,239.65,23.902374]
[1731938965963,16.7167756,239.72,239.67,0.04]
[1731938967386,4.1714,239.73,239.67,0.04]
[1731938967900,12.5450756,239.7,239.67,0.04]
[1731938968972,16.7170756,239.7,239.67,0.04]
[1731938969169,12.5450756,239.7,239.67,0.04]
[1731938969599,12.5450756,239.74,239.67,0.16549]
[1731938969794,12.5450756,239.72,239.67,0.16549]
[1731938970201,12.5450756,239.74,239.67,0.04]
[1731938970703,4.1713,239.73,239.67,0.04]
[1731938971303,12.5450756,239.74,239.67,36.3619596]
[1731938971493,4.171,239.75,239.68,0.12549]
[1731938972285,0.1,239.85,239.72,23.902374]
[1731938972286,4.1696,239.83,239.72,23.902374]
[1731938972487,12.5450756,239.82,239.74,12.5450756]
[1731938972791,16.7149756,239.82,239.75,4.29649]
[1731938973301,16.7149756,239.82,239.75,0.12549]
[1731938974488,16.7149756,239.82,239.75,4.29639]
[1731938975006,12.5450756,239.8,239.75,4.29639]
[1731938975306,12.5450756,239.8,239.74,23.902374]
[1731938976404,12.5450756,239.78,239.74,0.12549]
[1731938977220,12.5450756,239.82,239.74,27.2695656]
[1731938977583,6.4285,239.87,239.74,27.2695656]
[1731938977584,4.1673,239.97,239.79,12.5450756]
[1731938977785,225.82546552,240.03,239.9,0.12549]
[1731938977991,12.5450756,239.97,239.9,23.902374]
[1731938978190,12.5450756,239.97,239.92,0.12549]
[1731938978405,12.5450756,239.95,239.9,23.776884]
[1731938978585,12.5450756,239.97,239.88,36.5729396]
[1731938978910,12.5450756,239.99,239.91,23.902374]
[1731938979409,12.5450756,239.97,239.91,23.902374]
[1731938979593,4.1663,240.02,239.91,4.1682]
[1731938979785,12.5450756,239.97,239.92,23.902374]
[1731938980605,12.5450756,239.93,239.88,23.902374]
[1731938981013,4.1644,240.13,239.93,23.876884]
[1731938981211,12.5450756,240.08,240.0,0.12549]
[1731938981386,12.5450756,240.08,240.0,23.902374]
[1731938981586,225.82546552,240.18,240.02,24.027864]
[1731938981781,12.5450756,240.14,240.06,0.12549]
[1731938981986,91.2531,240.21,240.04,12.5450756]
[1731938981987,25.4161,240.21,240.1,23.776884]
[1731938982212,12.5450756,240.17,240.11,0.12549]
[1731938982802,70.0,240.24,240.11,0.12549]
[1731938982998,12.5450756,240.16,240.11,0.12549]
[1731938983713,12.5450756,240.12,240.02,24.027864]
[1731938983890,12.5450756,240.08,240.02,24.027864]
[1731938984095,12.5450756,240.09,240.02,36.5729396]
[1731938984411,12.5450756,240.13,240.05,12.5450756]
[1731938984613,12.5450756,240.13,240.06,23.902374]
[1731938984915,12.5450756,240.1,240.06,0.12549]
[1731938985101,12.5450756,240.1,240.05,23.776884]
[1731938985102,12.5450756,240.1,240.05,0.12549]
[1731938985599,12.5450756,240.1,240.06,23.776884]
[1731938985804,12.5450756,240.12,240.07,0.12549]
[1731938987723,12.5450756,240.11,240.07,0.12549]
[1731938987897,12.5450756,240.08,239.92,0.1]
[1731938988227,12.5450756,240.02,239.95,22.9636756]
[1731938988404,12.5450756,240.02,239.96,0.09367462]
[1731938988805,12.5450756,240.02,239.95,22.9636756]
[1731938989118,12.5450756,240.02,239.88,29.3164726]
[1731938989119,70.0,240.09,239.99,12.5450756]
[1731938989309,155.82546552,240.12,239.99,0.09367462]
[1731938989514,12.5450756,240.06,239.99,0.09367462]
[1731938989722,4.1645,240.12,240.0,14.5832]
[1731938989895,52.0442,240.18,240.0,14.5832]
[1731938989896,4.1643,240.14,240.0,14.5832]
[1731938990315,4.1643,240.14,240.01,24.027864]
[1731938990728,12.5450756,240.09,240.01,36.5729396]
[1731938991025,12.5450756,240.1,240.03,24.027864]
[1731938991599,12.5450756,240.1,240.03,36.5729396]
[1731938992133,12.5450756,240.1,240.04,4.1659]
[1731938992427,12.5450756,240.14,240.08,23.902374]
[1731938992599,12.5450756,240.15,240.08,23.902374]
[1731938993805,12.5450756,240.12,240.08,23.902374]
[1731938994206,20.00259775,240.12,240.08,23.902374]
[1731938995230,20.00259775,240.13,240.08,4.1651]
[1731938995430,20.00259775,240.13,240.09,23.902374]
[1731938996330,20.00259775,240.11,240.09,0.12549]
[1731938996533,20.00259775,240.11,240.07,23.902374]
[1731938997101,20.00259775,240.08,240.0,20.00259775]
[1731938997337,20.00259775,240.04,239.99,26.545]
[1731938997517,20.00259775,240.02,239.98,6.5479]
[1731938998020,20.00259775,240.02,239.99,0.09367462]
[1731938998225,20.00259775,240.01,239.98,6.5479]
[1731938998406,20.00259775,240.03,239.98,10.7148]
[1731938999327,20.00259775,240.01,239.99,0.09367462]
[1731938999634,20.00259775,240.0,239.94,31.1403]
[1731938999833,20.00259775,239.98,239.94,31.1403]
[1731939000338,20.00259775,240.02,239.95,20.09627237]
[1731939000711,20.00259775,239.99,239.94,31.1403]
[1731939000910,20.00259775,239.96,239.91,4.168]
[1731939001211,20.00259775,239.95,239.89,4.1684]
[1731939001631,20.00259775,239.98,239.9,20.00259775]
[1731939002028,20.00259775,239.97,239.9,0.09367462]
[1731939002608,20.00259775,239.97,239.92,23.902374]
[1731939003425,20.00259775,239.97,239.92,0.12549]
[1731939004105,20.00259775,239.97,239.9,23.99604862]
[1731939004307,20.00259775,239.97,239.84,10.4233]
[1731939004308,20.00259775,239.91,239.84,10.4233]
[1731939004534,20.00259775,239.89,239.84,10.4233]
[1731939004739,4.1679,239.93,239.84,10.4233]
[1731939004740,20.00259775,239.87,239.84,10.4233]
[1731939004908,15.6504,239.99,239.8,6.3285]
[1731939004909,20.00259775,239.85,239.81,4.1698]
[1731939005349,20.00259775,239.84,239.79,14.5957]
[1731939006015,20.00259775,239.82,239.77,4.1705]
[1731939006426,20.00259775,239.82,239.76,0.09367462]
[1731939006621,20.00259775,239.82,239.75,10.3055]
[1731939006823,20.00259775,239.8,239.75,10.3055]
[1731939007225,20.00259775,239.8,239.76,0.09367462]
[1731939007729,20.00259775,239.8,239.74,10.4277]
[1731939007923,20.00259775,239.78,239.74,10.4277]
[1731939008849,20.00259775,239.78,239.71,24.1716]
[1731939009156,20.00259775,239.78,239.71,4.1716]
[1731939009323,20.00259775,239.78,239.69,10.4299]
[1731939009324,20.00259775,239.72,239.69,10.4299]
[1731939009524,20.00259775,239.72,239.67,0.04]
[1731939009718,20.00259775,239.74,239.67,34.64579775]
[1731939009925,20.00259775,239.73,239.67,14.6432]
[1731939010330,4.1706,239.78,239.67,34.64579775]
[1731939010644,20.00259775,239.74,239.67,34.64579775]
[1731939011034,20.00259775,239.74,239.68,23.902374]
[1731939011345,20.00259775,239.74,239.69,0.09367462]
[1731939012739,20.00259775,239.76,239.7,14.6015]
[1731939012939,20.00259775,239.8,239.72,20.00259775]
[1731939013138,20.00259775,239.77,239.67,4.2122]
[1731939013344,20.00259775,239.74,239.68,20.00259775]
[1731939013532,20.00259775,239.74,239.67,4.2122]
[1731939013925,20.00259775,239.74,239.67,0.04]
[1731939014157,20.00259775,239.73,239.67,0.13367462]
[1731939014446,20.00259775,239.73,239.68,0.12549]
[1731939014751,20.00259775,239.71,239.67,0.04]
[1731939014951,20.00259775,239.75,239.68,23.87055862]
[1731939015156,155.82546552,239.8,239.73,20.00259775]
[1731939015450,20.00259775,239.81,239.74,23.776884]
[1731939015852,85.3882,239.86,239.74,23.776884]
[1731939015853,20.00259775,239.83,239.75,20.12808775]
[1731939016040,15.3882,239.86,239.79,0.12549]
[1731939016041,20.00259775,239.86,239.79,0.12549]
[1731939016224,20.00259775,239.84,239.79,0.12549]
[1731939016538,4.1696,239.83,239.79,0.12549]
[1731939016732,4.1696,239.83,239.78,0.09367462]
[1731939017342,4.1696,239.83,239.75,0.12549]
[1731939017343,20.00259775,239.82,239.75,0.12549]
[1731939017547,4.1696,239.83,239.77,0.12549]
[1731939018333,20.00259775,239.84,239.78,0.09367462]
[1731939018532,20.00259775,239.82,239.78,0.09367462]
[1731939019352,20.00259775,239.88,239.81,23.902374]
[1731939019532,20.00259775,239.9,239.83,24.027864]
[1731939020051,20.00259775,239.88,239.82,0.12549]
[1731939020241,20.00259775,239.88,239.82,23.902374]
[1731939020659,20.00259775,239.88,239.82,28.072074]
[1731939022351,20.00259775,239.88,239.82,23.902374]
[1731939022544,20.00259775,239.83,239.76,6.3891]
[1731939022746,20.00259775,239.82,239.76,10.5598]
[1731939022960,20.00259775,239.82,239.76,20.9868]
[1731939023163,20.00259775,239.84,239.76,40.98939775]
[1731939023459,24.17189775,239.85,239.77,20.09627237]
[1731939023933,20.00259775,239.88,239.82,0.12549]
[1731939024263,20.00259775,239.83,239.76,16.8161]
[1731939024438,20.00259775,239.82,239.76,20.9869]
[1731939024756,20.00259775,239.8,239.74,4.171]
[1731939024935,20.00259775,239.77,239.71,10.4289]
[1731939025359,20.00259775,239.76,239.71,10.4289]
[1731939025556,20.00259775,239.75,239.67,40.45009775]
[1731939025752,20.00259775,239.69,239.67,0.04]
[1731939026464,20.00259775,239.71,239.67,0.04]
[1731939027534,24.17429775,239.71,239.67,0.04]
[1731939027740,20.00259775,239.7,239.67,0.04]
[1731939028758,20.00259775,239.73,239.67,0.16549]
[1731939029065,155.82546552,239.78,239.67,0.16549]
[1731939029066,20.00259775,239.72,239.67,0.16549]
[1731939030338,0.1,239.81,239.67,0.16549]
[1731939030339,4.1692,239.85,239.72,0.12549]
[1731939030537,20.00259775,239.84,239.78,0.12549]
[1731939030774,30.0,239.79,239.78,0.12549]
[1731939031148,4.1692,239.85,239.78,0.12549]
[1731939031149,20.00259775,239.8,239.78,0.12549]
[1731939031664,20.00259775,239.8,239.74,0.12549]
[1731939031865,20.00259775,239.8,239.71,23.776884]
[1731939031866,20.00259775,239.77,239.72,0.12549]
[1731939032036,20.00259775,239.77,239.73,0.09367462]
[1731939033235,20.00259775,239.8,239.73,0.09367462]
[1731939033442,20.00259775,239.81,239.74,0.12549]
[1731939033639,20.00259775,239.8,239.74,0.12549]
[1731939033844,20.00259775,239.8,239.75,0.09367462]
[1731939034567,20.00259775,239.82,239.76,0.12549]
[1731939035642,20.00259775,239.82,239.76,4.29619]
[1731939036963,20.00259775,239.81,239.76,4.29619]
[1731939037578,15.414,239.86,239.76,4.29619]
[1731939037579,20.00259775,239.8,239.76,0.12549]
[1731939037779,20.00259775,239.79,239.75,0.12549]
[1731939038271,20.00259775,239.8,239.75,0.12549]
[1731939038850,20.00259775,239.8,239.75,4.29639]
[1731939040091,20.00259775,239.82,239.77,0.12549]
[1731939040372,12.53201922,239.83,239.78,0.09367462]
[1731939040762,12.53201922,239.82,239.78,0.09367462]
[1731939041073,12.53201922,239.8,239.78,0.09367462]
[1731939043377,12.53201922,239.8,239.76,10.427]
[1731939043571,12.53201922,239.78,239.76,10.427]
[1731939043762,12.53201922,239.78,239.73,4.26487462]
[1731939044267,12.53201922,239.8,239.73,27.22519384]
[1731939044453,12.53201922,239.82,239.74,23.902374]
[1731939044861,16.70121922,239.85,239.8,0.12549]
[1731939045157,155.82546552,239.87,239.81,0.09367462]
[1731939045158,12.53201922,239.87,239.81,0.09367462]
[1731939045360,12.53201922,239.87,239.83,0.12549]
[1731939045574,4.1683,239.91,239.83,0.12549]
[1731939045575,12.53201922,239.88,239.83,0.12549]
[1731939046659,12.53201922,239.88,239.83,4.29509]
[1731939047077,16.70071922,239.88,239.83,0.12549]
[1731939047282,12.53201922,239.86,239.83,0.12549]
[1731939047784,12.53201922,239.86,239.83,4.29499]
[1731939050684,12.53201922,239.87,239.83,4.29499]
[1731939051591,12.53201922,239.85,239.78,10.4261]
[1731939051902,12.53201922,239.83,239.78,10.4261]
[1731939052230,12.53201922,239.85,239.78,10.4261]
[1731939052786,12.53201922,239.85,239.79,0.09367462]
[1731939053203,12.53201922,239.85,239.79,0.21916462]
[1731939056577,12.53201922,239.85,239.79,4.38926462]
[1731939057292,12.53201922,239.85,239.79,14.81496462]
[1731939058658,16.70131922,239.85,239.79,10.55119]
[1731939058866,12.53201922,239.85,239.79,14.72149]
[1731939059078,12.53201922,239.85,239.8,0.21916462]
[1731939059274,4.1686,239.89,239.8,0.21916462]
[1731939059275,12.53201922,239.86,239.8,0.21916462]
[1731939059775,12.53201922,239.87,239.8,0.21916462]
[1731939060287,12.53201922,239.86,239.82,0.12549]
[1731939060792,12.53201922,239.84,239.82,0.12549]
[1731939061285,12.53201922,239.85,239.82,4.29519]
[1731939061465,12.53201922,239.86,239.83,0.12549]
[1731939063904,12.53201922,239.84,239.81,0.21916462]
[1731939064861,12.53201922,239.84,239.81,4.38906462]
[1731939065068,4.1689,239.87,239.81,4.38906462]
[1731939065496,12.53201922,239.85,239.81,4.38906462]
[1731939066782,4.1678,239.93,239.81,27.34598384]
[1731939066984,12.53201922,239.89,239.81,27.34598384]
[1731939067377,12.53201922,239.92,239.85,0.12549]
[1731939067576,12.53201922,239.93,239.85,12.65750922]
[1731939067879,12.53201922,239.92,239.85,0.12549]
[1731939068099,12.53201922,239.91,239.85,0.12549]
[1731939068404,12.53201922,239.9,239.83,12.65750922]
[1731939068705,12.53201922,239.9,239.84,14.593]
[1731939068883,12.53201922,239.91,239.85,0.12549]
[1731939069081,12.53201922,239.95,239.89,0.12549]
[1731939069282,155.82546552,239.98,239.89,0.12549]
[1731939069283,12.53201922,239.94,239.89,0.12549]
[1731939069600,4.167,239.98,239.89,0.12549]
[1731939069601,12.53201922,239.93,239.89,0.12549]
[1731939069985,12.53201922,239.93,239.87,0.21916462]
[1731939070898,12.53201922,239.94,239.89,0.12549]
[1731939071491,4.1673,239.97,239.89,0.12549]
[1731939071492,12.53201922,239.91,239.89,0.12549]
[1731939072002,12.53201922,239.9,239.86,0.12549]
[1731939072206,12.53201922,239.89,239.86,0.12549]
[1731939072378,12.53201922,239.9,239.86,0.12549]
[1731939072575,12.53201922,239.92,239.86,0.12549]
[1731939073604,12.53201922,239.92,239.87,0.09367462]
[1731939073772,12.53201922,239.92,239.88,0.12549]
[1731939074694,12.53201922,239.94,239.88,0.12549]
[1731939075003,12.53201922,239.94,239.89,0.09367462]
[1731939075493,4.1672,239.97,239.89,0.09367462]
[1731939075494,12.53201922,239.93,239.89,0.09367462]
[1731939075691,12.53201922,239.93,239.91,0.12549]
[1731939076496,12.53201922,239.92,239.91,0.12549]
[1731939078096,12.53201922,239.93,239.91,4.29369]
[1731939079093,12.53201922,239.93,239.91,0.12549]
[1731939079908,12.53201922,239.93,239.91,4.29369]
[1731939080288,12.53201922,239.93,239.91,0.12549]
[1731939080601,12.53201922,239.92,239.91,0.12549]
[1731939083796,12.53201922,239.93,239.91,0.12549]